Cogmind - Beta 10 X2 --- EXPLORER MODE // 2020.07.18 @ 22:33:22 // Experiment/BattleRoyale Player: Minty Result: Escaped! Performance ------------- Evolutions (0) 0 Regions Visited (0) 0 Robots Destroyed (3) 15 Value Destroyed (1500) 1500 Prototype IDs (3) 60 Alien Tech Used (0) 0 Bonus (30085) 30085 TOTAL SCORE: 31660 Bonus ------- Win 3000 Win Speed 27085 Cogmind --------- Core Integrity 37/250 Matter 165/300 Energy 801/810 System Corruption 0% Temperature Cool (151) Movement Treading (158) Location To Epsilon Eridani Parts ------- > --- POWER (4) -------- Heavy Deuterium Engine Angular Momentum Engine > --- PROPULSION (4) --- Armored Treads Medium Treads Biometal Medium Treads > --- UTILITY (7) ------ Advanced Coolant Injector Compact Battery Experimental Armor Integrity Analyzer Recoil Stabilizer Particle Charger Particle Charger Improved Light Armor Plating > --- WEAPON (3) ------- Heavy Phase Cannon Hardcell Cannon Impact Mace > --- INVENTORY (4) ---- (None) Peak State ------------ > --- POWER ------------ Heavy Deuterium Engine Angular Momentum Engine > --- PROPULSION ------- Armored Treads Medium Treads Improved Medium Treads Biometal Medium Treads > --- UTILITY ---------- Advanced Coolant Injector Compact Battery Experimental Armor Integrity Analyzer Recoil Stabilizer Particle Charger Particle Charger Improved Light Armor Plating > --- WEAPON ----------- Heavy Phase Cannon Hardcell Cannon Impact Mace > --- INVENTORY -------- Flak Cannon [Rating: 80] Favorites ----------- Power Heavy Deuterium Engine Engine Heavy Deuterium Engine Propulsion Biometal Medium Treads Treads Biometal Medium Treads Leg Armored Leg Utility Particle Charger Device Particle Charger Storage Compact Battery Processor Experimental Armor Integrity Analyzer Protection Improved Light Armor Plating Weapon Heavy Phase Cannon Energy Gun Electrolaser Energy Cannon Heavy Phase Cannon Ballistic Cannon Hardcell Cannon Impact Weapon Impact Mace Build | -5 ------- Run | Tow Slots Evolved . | . Power . | . Propulsion . | . Utility . | . Weapon . | . Parts Attached 7 | 7 Power . | . Engine . | . Core . | . Reactor . | . Propulsion 2 | 2 Treads 2 | 2 Leg . | . Wheel . | . Hover . | . Flight . | . Utility 2 | 2 Device . | . Storage . | . Processor 1 | 1 Hackware . | . Protection 1 | 1 Artifact . | . Weapon 3 | 3 Energy Gun . | . Energy Cannon . | . Ballistic Gun . | . Ballistic Cannon 2 | 2 Launcher . | . Special Weapon . | . Impact Weapon 1 | 1 Slashing Weapon . | . Piercing Weapon . | . Special Melee Weapon . | . Unidentified Prototypes 2 | 2 Parts Lost 1 | 1 Power . | . Propulsion 1 | 1 Utility . | . Weapon . | . Highest Loss Streak 1 | 1 Average Slot Usage (%) 90 | 90 Engine 11 | 11 Treads 18 | 18 Device 24 | 24 Storage 5 | 5 Processor 4 | 4 Protection 4 | 4 Energy Cannon 5 | 5 Ballistic Cannon 8 | 8 Impact Weapon 2 | 2 Naked Turns . | . Heaviest Build 62 | 62 Greatest Support 113 | 113 Greatest Overweight (x) . | . Average Overweight (x) . | . Largest Inventory Capacity 4 | 4 Average Capacity 4 | 4 Most Carried 1 | 1 Average Carried . | . Final Capacity 4 | 4 Final Carried . | . Class Distribution -------------------- 58% | Hacker-Gunner 41% | Hacker-Mutant Dominant Class ---------------- Hacker-Gunner | -5/Wartown Resources | -5 ----------- Run | Tow Matter Collected 78 | 78 Remotely . | . Salvage Created . | . Parts . | . Haulers Intercepted . | . Recyclers Shooed . | . Parts Field Recycled . | . Retrieved Matter . | . Parts Self-Destructed . | . Prevented . | . Kills | -5 ------- Run | Tow Combat Hostiles Destroyed 3 | 3 Cannons 3 | 3 Classes Destroyed 1 | 1 Player 3 | 3 Best Kill Streak 1 | 1 Combat Bots Only 1 | 1 Max Kills in Single Turn 1 | 1 Gunslinging . | . Exploded . | . Melee . | . Uniques/NPCs Destroyed . | . Combat | -5 -------- Run | Tow Damage Taken 512 | 512 Core 255 | 255 Absorbed by Shields . | . Redirected to Core 6737 | 6737 Core Remaining (%) 14 | 14 Volleys Fired 27 | 27 Largest 3 | 3 Hottest 207 | 207 Shots Fired 55 | 55 Gun . | . Cannon 55 | 55 Launcher . | . Special . | . Kinetic 33 | 33 Thermal 22 | 22 Explosive . | . Electromagnetic . | . Robot Hit Streak 24 | 24 Robot Miss Streak 2 | 2 Penetration Max . | . Secondary Targets . | . Shots Hit Robots 41 | 41 Core Hits 6 | 6 Critical Hits 2 | 2 Critical Kills . | . Critical Parts Destroyed 2 | 2 Melee Attacks . | . Impact . | . Slashing . | . Piercing . | . Sneak Attacks . | . Combat Hostiles . | . Follow-up Attacks . | . Damage Inflicted 1413 | 1413 Guns . | . Cannons 1413 | 1413 Explosions . | . Melee . | . Ramming . | . Kinetic 779 | 779 Thermal 634 | 634 Explosive . | . Electromagnetic . | . Impact . | . Slashing . | . Piercing . | . Highest Corruption . | . Average Corruption . | . Corruption Purged . | . Overload Shots . | . Overflow Damage 5 | 5 Projectiles 5 | 5 Explosions . | . Melee . | . Knockbacks 2 | 2 Impact . | . Kinetic 2 | 2 Secondary . | . Self-Inflicted Damage . | . Shots . | . Rammed . | . Targets Rammed . | . Kicked . | . Crushed . | . Highest Temperature 199 | 199 Average Temperature 86 | 86 Received Heat Transfer 27 | 27 Siege Activations . | . Robots Corrupted . | . Combat Hostiles . | . Parts Fried . | . Impact Corruptions . | . Robots Melted . | . Combat Hostiles . | . Parts Melted . | . Heat Transferred 153 | 153 Parts Sabotaged . | . Parts Stolen . | . Parts Stripped . | . Power Chain Reactions . | . Missiles Intercepted . | . Alert | -5 ------- Run | Tow Peak Influence . | . Average Influence . | . Maximum Alert Level . | . Low Security (%) . | . Level 1 . | . Level 2 . | . Level 3 . | . Level 4 . | . Level 5 . | . High Security . | . Max Security . | . Squads Dispatched . | . Investigation . | . Extermination . | . Reinforcement . | . Assault . | . Garrison . | . Intercept . | . Construction Impeded . | . Haulers Reinforced . | . Stealth | -5 --------- Run | Tow Distress Signals . | . Communications Jammed . | . Distress Signals . | . Times Spotted 3 | 3 Peak Tracking Total 1 | 1 Tactical Retreats . | . Traps | -5 ------- Run | Tow Traps Triggered . | . Indirectly . | . Trap Hack Attempts . | . Triggered . | . Disarmed . | . Reprogrammed . | . Reused . | . Traps Extracted . | . Installed . | . Triggered . | . Machines | -5 ---------- Run | Tow Machines Disabled . | . Max in Single Turn . | . Machines Sabotaged . | . Garrisons Compromised . | . Overloaded Fab Kills . | . Fab Network Shutdowns . | . Hacking | -5 --------- Run | Tow Machines Accessed . | . Terminals . | . Fabricators . | . Repair Stations . | . Recycling Units . | . Scanalyzers . | . Garrison Access . | . Total Hacks . | . Successful . | . Failed . | . Catastrophic . | . Database Lockouts . | . Manual . | . Terminals . | . Fabricators . | . Repair Stations . | . Recycling Units . | . Scanalyzers . | . Garrison Access . | . Terminal Hacks . | . Fabricator Hacks . | . Repair Station Hacks . | . Recycling Unit Hacks . | . Scanalyzer . | . Garrison Access Hacks . | . Unauthorized Hacks . | . Terminals . | . Fabricators . | . Repair Stations . | . Recycling Units . | . Scanalyzers . | . Garrison Access . | . Data Cores Recovered . | . Used . | . Hacking Detections . | . Full Trace Events . | . Feedback Events . | . Feedback Blocked . | . Robot Schematics Acquired . | . Robots Built . | . Matter . | . Time . | . Total Robot Build Rating . | . Part Schematics Acquired . | . Parts Built . | . Matter . | . Time . | . Total Part Build Rating . | . Parts Repaired . | . Time . | . Parts Recycled . | . Recycled Matter . | . Retrieved Matter . | . Retrieved Components . | . Parts Scanalyzed . | . Part Schematics Acquired . | . Parts Damaged . | . Bothacking | -5 ------------ Run | Tow Used RIF Installer . | . Robots Hacked . | . Non-combat . | . Combat . | . Robot Hacks Applied . | . Relay Couplers Released . | . Robots Rewired . | . Allies Hacked . | . Hacks Repelled . | . Allies | -5 -------- Run | Tow Total Allies . | . Largest Group . | . Highest-Rated Group . | . Highest-Rated Ally . | . Total Orders . | . Ally Attacks . | . Total Damage . | . Kills . | . Allies Corrupted . | . Allies Melted . | . Intel | -5 ------- Run | Tow Robot Analysis Total . | . Derelict Logs Recovered . | . Drone Launches . | . Drone Recoveries . | . Exploration | -5 ------------- Run | Tow Turns Passed 934 | 934 Spaces Moved 460 | 460 Core . | . Treads 460 | 460 Legs . | . Wheels . | . Hover . | . Flight . | . Fastest Speed 152 | 152 Average Speed 155 | 155 Slowest Speed 158 | 158 Overloaded Moves . | . Propulsion Burnouts . | . Robots Hopped . | . Cave-ins Triggered . | . Exploration Rate (%) 23 | 23 Regions Visited 1 Branch Regions 1 Pre-discovered Areas . | . Known Exits Taken . | . Unknown Exits Taken . | . Scrap Searched . | . Spaces Dug 1 | 1 Terrain Destroyed 2 | 2 Melee . | . Projectile 2 | 2 AOE . | . Actions | -5 --------- Run | Tow Total 627 | 627 Wait 128 | 128 Move 459 | 459 Hop . | . Pick Up . | . Fast Attach 6 | 6 Attach . | . Detach . | . Swap 1 | 1 Drop 6 | 6 Fire 27 | 27 Melee . | . Ram . | . Kick . | . Crush . | . Escape Stasis . | . Rewire . | . Trap . | . Miscellaneous . | . Route ------- -5/Wartown To Epsilon Eridani History --------- Turn | Location | Event 196 | -5/Wartown | Found Prototype Processor 196 | -5/Wartown | Identified Exp. Armor Integrity Analyzer 312 | -5/Wartown | Build established: Hacker-Gunner 761 | -5/Wartown | Core integrity fell below 50% 857 | -5/Wartown | Build established: Hacker-Mutant 858 | -5/Wartown | Core integrity fell below 20% 935 | *** | Escaped! Last Messages --------------- 00469_ Acquired 40 matter. 00556_ Dropped Hardcell Cannon. 00557_ Acquired Prototype Impact Weapon. 00557_ Identified Impact Mace. 00588_ Used Protomatter to restore core integrity (+42, depleted) 00607_ Neutrino Reactor explodes. 00611_ Door malfunctions. 00624_ NecroSuite-2 destroyed. 00646_ Dropped Flak Cannon. 00651_ The unstable cave ceiling collapses. 00738_ Nuclear Reactor explodes. 00739_ The unstable cave ceiling collapses. 00760_ Fusion Modulator explodes. 00764_ The unstable cave ceiling collapses. 00851_ Critical hit. 00851_ Imp. Medium Treads destroyed. 00855_ Destroyed Lgt. Nuclear Core. 00858_ GammaRiot-23 knocked back. 00879_ GammaRiot-23 destroyed. [[Congratulations! You are victorious! The exit is now open...]] Map ----- +----------------------------------------------------+ | ?????????????????????? ??????????????????????? | | ?????????????????????# #?????????????????????? | | ?????????????????????# #? ?????????????????? | | ?????????????????????# # ?????????????????? | | ?????????????######### # ?????????????????? | | ????????????? # ??????????????????? | | ????????????? # ######?????????????? | | ?????????????? ??????????????? | | ???????????????? ????????????????? | | ????????????????? ?????????????????? | | ?????????????????? ??????????????????? | | ??????????????????? ???????????????????? | | ???????????????????? ????????????????????? | | ?????????????????????# #?????????????????????? | | ?????????????????????# #?????????????????????? | | ???????????????#######++;++########??????????????? | | ???????????????# #??????????????? | | ???????????????# #??????????????? | | ???????????????# #??????????????? | | ???????????????# #??????????????? | | ???????????????# #??????????????? | | ???????????????# #??????????????? | | ???????????????+ +??????????????? | | ???????????????+ +?? ?????????? | | ???????????????+ +? ?????????? | | ????????? ; @ + ?????????? | | ????????? ; ???????? | | ??????????## ### # ???????? | | ???????????????# # ??????????? | | ???????????????# #? ??????????? | | ???????????????# #?? ??????????? | | ???????????????# #??????????????? | | ???????????????# #??????????????? | | ???????????"???# #?? ???????????? | | ?????????? "#?########+;;;+####### ??????????? | | ?????????? # # # ??????????? | | ????????? # # # ?????????? | | ????????? " / ?????????? | | ???????? ?????????? | | ???????? ?????????? | | ???????? ?????????? | | ??????? ?????????? | | ??????? ??????????? | | ??????? ??????????? | | ??????? ??????????? | | ??????? ??????????? | | ??????? ??????????? | | ???????? " ??????????? | | ???????? """ ""???????????? | | ???????? """??????????????? | +----------------------------------------------------+ Best States ------------- Heat Dissipation 25 Coolant Potential 100 Energy Generation 31 Energy Capacity 810 Matter Stores 300 Matter Capacity 300 Sight Range 16 Terrain Scan Density 10 Additional Mass Support 9 Armor Coverage 150 Resistance: KI 35 Resistance: TH 35 Resistance: EX 35 Resistance: EM 35 Resistance: I 35 Resistance: S 35 Resistance: P 35 Evasion (%) 40 Armor Integrity Analysis 90 Recoil Reduction 6 Particle Charging 15 Offensive Hacking 20 Item Schematics ----------------- None Robot Schematics ------------------ None Fabricated ------------ Nothing Alien Tech Used ----------------- None Achievements -------------- None Challenges ------------ None Game ------ Seed CryofiberSpikedDriver Manual? 0 Play Time 00:04:46 Cumulative 211.9 hours Start 2020.07.18 @ 22:28:32 End 2020.07.18 @ 22:33:22 Sessions 1 Manual Loads 0 Difficulty Explorer Special Mode Experiment/BattleRoyale Game No. 130 Rogue 0 Adventurer 44 Explorer 86 Win Type 0 Total 6 Types 5/0/1/0/0/0/0 Lore% 53 Gallery% 79 Achievement% 58 Wizard Run 0 Options --------- ASCII 0 Keyboard 0 Movement Mouse Keybinds 0 Fullscreen 1 Font 18/TerminusBold Map View 76x50 Tactical HUD 1 Map Filters NONE Filters SATURATION(100) Steam 1 RUN: e12ec3e6-d04d-4f29-bd97-9f1e3190bc9d